[Event "Galicia-ch 2021"]
[Site "Padron"]
[Date "2021.04.02"]
[Round "4.4"]
[White "Villar Perez, Samuel"]
[Black "Lopez Gonzalez, Alfonso"]
[Result "1/2-1/2"]
[ECO "D02"]
[WhiteElo "2183"]
[BlackElo "2254"]
[Annotator "ChessBase"]
[PlyCount "89"]
[EventDate "2021.04.02"]
[EventType "swiss"]
[EventCountry "ESP"]
[SourceTitle "playchess.com"]
[Source "ChessBase"]
[SourceQuality "1"]
[TimeControl "5400+30"]

1. d4 {[%emt 0:00:39]} d5 {[%emt 0:00:00]} 2. Nf3 {[%emt 0:00:07]} Nf6 {[%emt 0:00:00]} 3. Bf4 {[%emt 0:00:06]} c5 {[%emt 0:03:31]} 4. e3 {[%emt 0:00:16]} Nc6 {[%emt 0:01:05]} 5. Nbd2 {[%emt 0:00:07]} cxd4 {[%emt 0:02:47]} 6. exd4 {[%emt 0:02:22]} Bg4 {[%emt 0:01:27]} 7. c3 {[%emt 0:00:24]} a6 {[%emt 0:20:57]} 8. Bd3 {[%emt 0:09:15]} e6 {[%emt 0:02:39]} 9. Qb3 {[%emt 0:12:21]} Na5 {[%emt 0:05:39]} 10. Qc2 {[%emt 0:00:56]} Bd6 {[%emt 0:03:55]} 11. Ne5 {[%emt 0:03:32]} Bh5 {[%emt 0:01:12]} 12. O-O {[%emt 0:03:36]} O-O {[%emt 0:08:45]} 13. Bg5 {[%emt 0:16:31]} Bg6 {[%emt 0:02:01]} 14. b4 {[%emt 0:12:41]} Nc6 {[%emt 0:02:49]} 15. Bxf6 {[%emt 0:00:15]} gxf6 {[%emt 0:02:32]} 16. Nxc6 {[%emt 0:06:13]} bxc6 {[%emt 0:00:22]} 17. f4 {[%emt 0:00:13]} Bxd3 {[%emt 0:03:14]} 18. Qxd3 {[%emt 0:00:02]} f5 {[%emt 0:00:22]} 19. Qg3+ {[%emt 0:10:22]} Kh8 {[%emt 0:00:14]} 20. Nf3 {[%emt 0:00:01]} Rg8 {[%emt 0:03:30]} 21. Ng5 {[%emt 0:00:02]} Qf6 {[%emt 0:01:47]} 22. Qh4 {[%emt 0:00:55]} Qg6 {[%emt 0:01:47]} 23. Qh3 {[%emt 0:02:20]} a5 {[%emt 0:05:10]} 24. a3 {[%emt 0:00:46]} Rg7 {[%emt 0:03:49]} 25. g3 {[%emt 0:04:10]} Rgg8 {[%emt 0:01:44]} 26. Kh1 {[%emt 0:07:38]} Ra7 {[%emt 0:01:23]} 27. Rfb1 {[%emt 0:00:14]} axb4 {[%emt 0:02:04]} 28. axb4 {[%emt 0:00:02]} Rga8 {[%emt 0:00:21]} 29. Qf1 {[%emt 0:02:55]} h6 {[%emt 0:01:17]} 30. Nf3 {[%emt 0:00:36]} Qg4 {[%emt 0:00:14]} 31. Ng1 {[%emt 0:02:47]} Ra2 {[%emt 0:03:16]} 32. Rxa2 {[%emt 0:00:01]} Rxa2 {[%emt 0:00:07]} 33. Qd1 {[%emt 0:00:02]} Qg8 {[%emt 0:02:37]} 34. Ra1 {[%emt 0:00:08]} Qa8 {[%emt 0:02:14]} 35. Rxa2 {[%emt 0:00:01]} Qxa2 {[%emt 0:00:07]} 36. Nf3 {[%emt 0:00:57]} Qf2 {[%emt 0:00:52]} 37. Qd3 {[%emt 0:00:46]} Kg7 {[%emt 0:00:36]} 38. Ng1 {[%emt 0:00:19]} Qe1 {[%emt 0:02:00]} 39. Kg2 {[%emt 0:00:26]} Qe4+ {[%emt 0:01:51]} 40. Qf3 {[%emt 0:00:02]} f6 {[%emt 0:01:28]} 41. Ne2 {[%emt 0:00:26]} Kf7 {[%emt 0:05:00]} 42. Kf2 {[%emt 0:00:08]} Kg6 {[%emt 0:01:19]} 43. h3 {[%emt 0:02:53]} Bc7 {[%emt 0:01:15]} 44. Qxe4 fxe4 45. Ke3 1/2-1/2

[Event "Galicia-ch 2021"]
[Site "Padron"]
[Date "2021.04.02"]
[Round "4.5"]
[White "Suarez Gomez, Paula"]
[Black "Abelleira Gonzalez, Daniel"]
[Result "0-1"]
[ECO "B16"]
[WhiteElo "1715"]
[BlackElo "1838"]
[Annotator "NA RC"]
[PlyCount "174"]
[EventDate "2021.04.02"]
[EventType "swiss"]
[EventCountry "ESP"]
[SourceTitle "playchess.com"]
[Source "ChessBase"]
[SourceQuality "1"]
[TimeControl "5400+30"]

1. e4 {[%emt 0:00:00]} c6 {[%emt 0:00:00]} 2. d4 {[%emt 0:00:09]} d5 {[%emt 0:00:44]} 3. Nc3 {[%emt 0:01:42]} dxe4 {[%emt 0:00:47]} 4. Nxe4 {[%emt 0:00:07]} Nf6 {[%emt 0:01:00]} 5. Nxf6+ {[%emt 0:01:40]} gxf6 {[%emt 0:00:35]} 6. Nf3 {[%emt 0:00:50]} Rg8 {[%emt 0:06:00]} 7. Qd3 {[%emt 0:13:40]} Qa5+ {[%emt 0:00:30]} 8. Bd2 {[%emt 0:01:53]} Qh5 {[%emt 0:10:06]} 9. Qb3 {[%emt 0:06:37]} a5 {[%emt 0:05:32]} 10. a4 {[%emt 0:09:58]} Bh6 {[%emt 0:09:36]} 11. O-O-O {[%emt 0:11:10]} Na6 {[%emt 0:03:40]} 12. Be2 {[%emt 0:09:36]} Rg7 {[%emt 0:06:18]} 13. Rhe1 {[%emt 0:05:20]} Nb4 {[%emt 0:01:06]} 14. h3 {[%emt 0:15:18]} Be6 {[%emt 0:00:38]} 15. Bc4 {[%emt 0:01:23]} Bxc4 {[%emt 0:05:59]} 16. Qxc4 {[%emt 0:00:03]} Rxg2 {[%emt 0:00:26]} 17. Qe2 {[%emt 0:08:50]} e6 {[%emt 0:00:56]} 18. h4 {[%emt 0:01:35]} O-O-O {[%emt 0:06:31]} 19. Kb1 {[%emt 0:01:51]} Bxd2 {[%emt 0:00:09]} 20. Rxd2 {[%emt 0:00:13]} Qd5 {[%emt 0:00:27]} 21. b3 {[%emt 0:02:07]} Rdg8 {[%emt 0:03:21]} 22. Qe3 {[%emt 0:02:43]} Qh5 {[%emt 0:02:37]} 23. Kb2 {[%emt 0:01:47]} Nd5 {[%emt 0:00:49]} 24. Qd3 {[%emt 0:01:12]} Qh6 {[%emt 0:01:29]} 25. c4 {[%emt 0:01:34]} Nb4 {[%emt 0:00:40]} 26. Qc3 {[%emt 0:00:25]} Qf4 {[%emt 0:00:29]} 27. Qe3 {[%emt 0:01:00]} Qf5 {[%emt 0:03:46]} 28. Qe4 {[%emt 0:00:37]} Qh3 {[%emt 0:00:48]} 29. Re3 {[%emt 0:00:32]} R2g7 {[%emt 0:07:09]} 30. Ng5 {[%emt 0:00:32]} Qh2 {[%emt 0:01:47]} 31. Nf3 {[%emt 0:00:04]} Qd6 {[%emt 0:03:19]} 32. Ree2 {[%emt 0:00:27]} h5 {[%emt 0:01:13]} 33. Qe3 {[%emt 0:00:22]} Rg4 {[%emt 0:00:40]} 34. Qh6 {[%emt 0:00:26]} Qf4 {[%emt 0:01:11]} 35. Qxf4 {[%emt 0:00:22]} Rxf4 {[%emt 0:00:07]} 36. Re3 {[%emt 0:00:17]} Rgg4 {[%emt 0:00:55]} 37. Kc1 {[%emt 0:00:34]} Kd7 {[%emt 0:00:33]} 38. Kd1 {[%emt 0:00:09]} Re4 {[%emt 0:02:15]} 39. Ke2 {[%emt 0:00:51]} Ke7 {[%emt 0:01:05]} 40. Rb2 {[%emt 0:00:57]} e5 {[%emt 0:01:06]} 41. dxe5 {[%emt 0:00:28]} fxe5 {[%emt 0:00:12]} 42. Rb1 {[%emt 0:00:57]} f6 {[%emt 0:00:46]} 43. Rb2 {[%emt 0:00:37]} c5 {[%emt 0:02:01]} 44. Rd2 {[%emt 0:00:22]} Nc6 {[%emt 0:00:11]} 45. Rdd3 {[%emt 0:00:33]} Nd4+ {[%emt 0:00:26]} 46. Kd2 {[%emt 0:00:26]} Rxe3 {[%emt 0:01:08]} 47. Rxe3 {[%emt 0:00:40]} Nxf3+ {[%emt 0:01:22]} 48. Rxf3 {[%emt 0:00:02]} Rxh4 {[%emt 0:00:22]} 49. Ke3 {[%emt 0:00:15]} Ke6 {[%emt 0:00:27]} 50. Rg3 {[%emt 0:00:20]} Rg4 {[%emt 0:00:08]} 51. Rh3 {[%emt 0:00:20]} h4 {[%emt 0:00:09]} 52. Kf3 {[%emt 0:00:26]} f5 {[%emt 0:00:15]} 53. Ke3 {[%emt 0:00:24]} Kf6 {[%emt 0:00:39]} 54. f3 {[%emt 0:00:51]} Rd4 {[%emt 0:00:26]} 55. Rh2 {[%emt 0:00:24]} Rf4 {[%emt 0:02:39]} 56. Rh1 {[%emt 0:00:34]} b6 {[%emt 0:00:34]} 57. Rh2 {[%emt 0:00:11]} Rd4 {[%emt 0:00:31]} 58. Rh1 {[%emt 0:00:46]} e4 {[%emt 0:01:23]} 59. f4 {[%emt 0:00:59]} Rd3+ {[%emt 0:00:12]} 60. Ke2 {[%emt 0:00:30]} h3 {[%emt 0:00:12]} 61. Rb1 {[%emt 0:00:26]} h2 {[%emt 0:00:19]} 62. Rh1 {[%emt 0:00:04]} Rxb3 {[%emt 0:00:07]} (62... Rh3 $142 63. Kf2 Kg6) 63. Kf2 {[%emt 0:00:57]} Rf3+ {[%emt 0:01:44]} 64. Kg2 {[%emt 0:00:35]} Rxf4 {[%emt 0:00:15]} 65. Rxh2 {[%emt 0:00:06]} Rg4+ {[%emt 0:00:10]} 66. Kf2 {[%emt 0:00:07]} f4 {[%emt 0:00:48]} 67. Rh6+ {[%emt 0:00:07]} Rg6 {[%emt 0:00:09]} 68. Rh4 {[%emt 0:00:08]} Kg5 {[%emt 0:00:12]} (68... Kf5 $142 69. Rh5+ Rg5 70. Rh7 e3+ 71. Kf1 f3 72. Re7 Kf4 73. Rf7+ Ke4 74. Re7+ Kd4 75. Rf7 e2+ 76. Kf2 Rg2+ 77. Kxf3 e1=N+ 78. Kf4 Rf2+ 79. Kg5 Rxf7 80. Kg6 Rf3 81. Kh5 Ke5 82. Kg6 Ke6 83. Kg5 Kf7 84. Kh4 Kf6 85. Kg4 Kg6 86. Kh4 Kf5 87. Kh5 Rh3#) 69. Rh2 {[%emt 0:00:29]} Rh6 {[%emt 0:00:18]} 70. Rg2+ {[%emt 0:00:10]} Kf5 {[%emt 0:00:08]} 71. Rg8 {[%emt 0:00:28]} Rg6 {[%emt 0:01:39]} 72. Rf8+ {[%emt 0:00:18]} Kg4 {[%emt 0:00:09]} 73. Rf7 {[%emt 0:01:20]} e3+ {[%emt 0:00:11]} 74. Ke2 {[%emt 0:00:17]} Kg3 {[%emt 0:00:09]} 75. Rf8 {[%emt 0:00:35]} Kg4 $2 {[%emt 0:03:07]} (75... Rg4 $19 76. Rf5 Rg6) 76. Rf7 $1 {[%emt 0:01:43]} Kg5 {[%emt 0:00:11]} 77. Rf8 {[%emt 0:00:13]} Rf6 {[%emt 0:00:11]} 78. Rg8+ {[%emt 0:00:14]} Kf5 {[%emt 0:00:05]} 79. Re8 {[%emt 0:00:19]} Re6 {[%emt 0:00:06]} 80. Rf8+ {[%emt 0:00:14]} Ke4 {[%emt 0:00:39]} 81. Rf7 {[%emt 0:00:20]} Re5 {[%emt 0:00:29]} 82. Rf6 {[%emt 0:00:51]} Rf5 {[%emt 0:00:36]} 83. Re6+ {[%emt 0:00:33]} Kd4 {[%emt 0:00:18]} 84. Rd6+ {[%emt 0:00:38]} Kxc4 {[%emt 0:00:10]} 85. Rxb6 {[%emt 0:00:03]} f3+ {[%emt 0:00:05]} 86. Kf1 {[%emt 0:01:35]} Rd5 {[%emt 0:00:12]} 87. Ke1 {[%emt 0:01:01]} Rd2 {[%emt 0:01:01]} 0-1

[Event "Galicia-ch 2021"]
[Site "Padron"]
[Date "2021.04.02"]
[Round "4.6"]
[White "Sixto Puente, Eloy"]
[Black "Prado Acebo, Ines"]
[Result "0-1"]
[ECO "B43"]
[WhiteElo "2039"]
[BlackElo "2166"]
[Annotator "ChessBase"]
[PlyCount "92"]
[EventDate "2021.04.02"]
[EventType "swiss"]
[EventCountry "ESP"]
[SourceTitle "playchess.com"]
[Source "ChessBase"]
[SourceQuality "1"]
[TimeControl "5400+30"]

1. e4 {[%emt 0:00:00]} c5 {[%emt 0:00:00]} 2. Nf3 {[%emt 0:00:00]} e6 {[%emt 0:00:00]} 3. d4 {[%emt 0:00:00]} cxd4 {[%emt 0:00:00]} 4. Nxd4 {[%emt 0:00:06]} a6 {[%emt 0:00:00]} 5. Nc3 {[%emt 0:01:59]} Qc7 {[%emt 0:01:59]} 6. g3 {[%emt 0:03:52]} Bb4 {[%emt 0:01:32]} 7. Nb3 {[%emt 0:03:35]} Nf6 {[%emt 0:04:44]} 8. Bg2 {[%emt 0:00:33]} Bxc3+ {[%emt 0:08:06]} 9. bxc3 {[%emt 0:00:19]} Qxc3+ {[%emt 0:00:05]} 10. Bd2 {[%emt 0:01:55]} Qc4 {[%emt 0:01:27]} 11. Na5 {[%emt 0:02:34]} Qa4 {[%emt 0:02:30]} 12. Qe2 {[%emt 0:03:12]} Nc6 {[%emt 0:04:09]} 13. Nxc6 {[%emt 0:01:52]} Qxc6 {[%emt 0:05:48]} 14. O-O {[%emt 0:01:53]} e5 {[%emt 0:00:20]} 15. Bb4 {[%emt 0:01:34]} a5 {[%emt 0:00:13]} 16. Ba3 {[%emt 0:03:42]} b5 {[%emt 0:00:17]} 17. Rfd1 {[%emt 0:02:02]} b4 {[%emt 0:01:36]} 18. Bb2 {[%emt 0:00:30]} d6 {[%emt 0:01:40]} 19. Qd2 {[%emt 0:05:52]} Ke7 {[%emt 0:07:21]} 20. a3 {[%emt 0:04:37]} Rb8 {[%emt 0:02:46]} 21. axb4 {[%emt 0:00:50]} axb4 {[%emt 0:00:10]} 22. Ra7+ {[%emt 0:01:11]} Bd7 {[%emt 0:03:18]} 23. c3 {[%emt 0:09:21]} Qb6 {[%emt 0:15:58]} 24. Raa1 {[%emt 0:09:21]} Bg4 {[%emt 0:03:08]} 25. Rdc1 {[%emt 0:00:48]} b3 {[%emt 0:02:01]} 26. Kh1 {[%emt 0:08:09]} Rhc8 {[%emt 0:03:45]} 27. f4 {[%emt 0:02:15]} Be6 {[%emt 0:00:51]} 28. fxe5 {[%emt 0:01:02]} dxe5 {[%emt 0:00:07]} 29. Ba3+ {[%emt 0:02:02]} Ke8 {[%emt 0:00:07]} 30. Rab1 {[%emt 0:04:05]} h6 {[%emt 0:03:04]} 31. Rf1 {[%emt 0:04:49]} Ra8 {[%emt 0:06:47]} 32. Bb2 {[%emt 0:06:15]} Ra4 {[%emt 0:04:00]} 33. c4 {[%emt 0:05:33]} Raxc4 {[%emt 0:02:58]} 34. Rxf6 {[%emt 0:03:23]} gxf6 {[%emt 0:01:12]} 35. Qxh6 {[%emt 0:00:29]} Qf2 {[%emt 0:05:09]} 36. Ba3 {[%emt 0:02:34]} Kd7 {[%emt 0:00:29]} 37. Rd1+ {[%emt 0:02:53]} Rd4 {[%emt 0:00:17]} 38. Rf1 {[%emt 0:02:57]} Qa2 {[%emt 0:00:07]} 39. Bh3 {[%emt 0:00:47]} Qxa3 {[%emt 0:00:19]} 40. Bxe6+ {[%emt 0:00:06]} fxe6 {[%emt 0:00:10]} 41. Qxf6 {[%emt 0:00:58]} Kd6 {[%emt 0:02:40]} 42. Rf5 {[%emt 0:00:34]} Rxe4 {[%emt 0:01:21]} 43. Kg2 {[%emt 0:00:28]} b2 {[%emt 0:01:18]} 44. Rf1 {[%emt 0:00:30]} Qd3 {[%emt 0:00:20]} 45. Rf3 {[%emt 0:00:32]} Qxf3+ {[%emt 0:00:18]} 46. Kh3 {[%emt 0:00:30]} Qxf6 {[%emt 0:00:15]} 0-1

[Event "Galicia-ch 2021"]
[Site "Padron"]
[Date "2021.04.03"]
[Round "5.3"]
[White "Medarde Santiago, Luis Marcos"]
[Black "Gonzalez Perez, Arian"]
[Result "1-0"]
[ECO "B66"]
[WhiteElo "2325"]
[BlackElo "2481"]
[Annotator "ChessBase"]
[PlyCount "81"]
[EventDate "2021.04.02"]
[EventType "swiss"]
[EventCountry "ESP"]
[SourceTitle "playchess.com"]
[Source "ChessBase"]
[SourceQuality "1"]
[TimeControl "5400+30"]

1. e4 {[%emt 0:01:42]} c5 {[%emt 0:01:09]} 2. Nf3 {[%emt 0:00:12]} Nc6 {[%emt 0:00:13]} 3. Nc3 {[%emt 0:00:16]} d6 {[%emt 0:00:18]} 4. d4 {[%emt 0:00:05]} cxd4 {[%emt 0:00:04]} 5. Nxd4 {[%emt 0:00:05]} Nf6 {[%emt 0:00:05]} 6. Bg5 {[%emt 0:00:45]} e6 {[%emt 0:00:11]} 7. Qd2 {[%emt 0:00:07]} a6 {[%emt 0:00:05]} 8. O-O-O {[%emt 0:00:26]} h6 {[%emt 0:00:06]} 9. Nxc6 {[%emt 0:00:04]} bxc6 {[%emt 0:00:12]} 10. Bf4 {[%emt 0:00:03]} d5 {[%emt 0:00:28]} 11. Qe3 {[%emt 0:00:14]} Qa5 {[%emt 0:02:19]} 12. Be2 {[%emt 0:11:31]} Be7 {[%emt 0:46:02]} 13. Qg3 {[%emt 0:07:16]} dxe4 {[%emt 0:16:38]} 14. Qxg7 {[%emt 0:06:36]} Rg8 {[%emt 0:00:20]} 15. Qxh6 {[%emt 0:00:19]} e5 {[%emt 0:00:20]} 16. Bg5 {[%emt 0:10:01]} Rxg5 {[%emt 0:01:18]} 17. Qxg5 {[%emt 0:00:02]} Rb8 {[%emt 0:00:11]} 18. Qg7 {[%emt 0:18:40]} Rxb2 {[%emt 0:19:33]} 19. Qh8+ {[%emt 0:05:29]} Bf8 {[%emt 0:00:06]} 20. Kxb2 {[%emt 0:06:11]} Qa3+ {[%emt 0:03:02]} 21. Kb1 {[%emt 0:00:19]} Qb4+ {[%emt 0:00:03]} 22. Kc1 {[%emt 0:00:11]} Qxc3 {[%emt 0:00:04]} 23. Rd8+ {[%emt 0:00:53]} Kxd8 {[%emt 0:00:07]} 24. Qxf8+ {[%emt 0:00:05]} Kc7 {[%emt 0:00:46]} 25. Qxf7+ {[%emt 0:00:55]} Bd7 {[%emt 0:02:04]} 26. Qb3 {[%emt 0:05:43]} Qa1+ {[%emt 0:00:54]} 27. Qb1 {[%emt 0:00:01]} Qc3 {[%emt 0:00:20]} 28. Qb2 {[%emt 0:00:12]} Qa5 {[%emt 0:00:01]} 29. a3 {[%emt 0:01:24]} Nd5 {[%emt 0:00:28]} 30. Qxe5+ {[%emt 0:00:27]} Kc8 {[%emt 0:00:20]} 31. Bc4 {[%emt 0:03:00]} e3 {[%emt 0:01:05]} 32. Bxd5 {[%emt 0:01:36]} exf2 {[%emt 0:00:03]} 33. Rf1 {[%emt 0:12:43]} Qxa3+ {[%emt 0:01:05]} 34. Kb1 {[%emt 0:00:51]} cxd5 {[%emt 0:00:22]} 35. Rxf2 {[%emt 0:01:18]} Qb4+ {[%emt 0:00:02]} 36. Kc1 {[%emt 0:00:47]} d4 {[%emt 0:00:02]} 37. Rf3 {[%emt 0:03:02]} Bb5 {[%emt 0:06:05]} 38. Qe6+ {[%emt 0:00:53]} Kb8 {[%emt 0:00:15]} 39. Rb3 {[%emt 0:00:53]} Qc5 {[%emt 0:00:33]} 40. Qxa6 {[%emt 0:00:23]} Qg5+ {[%emt 0:00:24]} 41. Kb1 {[%emt 0:00:15]} 1-0

[Event "Galicia-ch 2021"]
[Site "Padron"]
[Date "2021.04.03"]
[Round "5.5"]
[White "Espineira Gonzalez, Diego"]
[Black "Casares Ripoll, Fernando"]
[Result "1-0"]
[ECO "C60"]
[WhiteElo "2338"]
[BlackElo "2098"]
[Annotator "NA"]
[PlyCount "93"]
[EventDate "2021.04.02"]
[EventType "swiss"]
[EventCountry "ESP"]
[SourceTitle "playchess.com"]
[Source "ChessBase"]
[SourceQuality "1"]
[TimeControl "5400+30"]

1. e4 {[%emt 0:00:00]} e5 {[%emt 0:00:00]} 2. Nf3 {[%emt 0:00:00]} Nc6 {[%emt 0:00:00]} 3. Bb5 {[%emt 0:00:00]} g6 {[%emt 0:00:00]} 4. O-O {[%emt 0:00:30]} Bg7 {[%emt 0:00:00]} 5. Re1 {[%emt 0:03:46]} Nge7 {[%emt 0:00:26]} 6. c3 {[%emt 0:00:54]} O-O {[%emt 0:00:28]} 7. d4 {[%emt 0:02:14]} exd4 {[%emt 0:00:39]} 8. cxd4 {[%emt 0:00:07]} d5 {[%emt 0:00:29]} 9. exd5 {[%emt 0:05:26]} Nxd5 {[%emt 0:00:19]} 10. h3 {[%emt 0:01:54]} h6 {[%emt 0:01:48]} 11. Nc3 {[%emt 0:07:23]} Nce7 {[%emt 0:02:27]} 12. Be3 {[%emt 0:10:01]} Nf5 {[%emt 0:14:47]} 13. Rc1 $11 {[%emt 0:07:46]} c6 {[%emt 0:04:10]} 14. Nxd5 {[%emt 0:01:46]} Qxd5 {[%emt 0:01:57]} 15. Bc4 {[%emt 0:00:22]} Qd6 {[%emt 0:04:47]} 16. Qd2 {[%emt 0:05:22]} Nxe3 {[%emt 0:04:38]} 17. Qxe3 {[%emt 0:14:18]} Bf5 {[%emt 0:02:44]} 18. Qe7 {[%emt 0:03:55]} Rad8 {[%emt 0:02:09]} 19. Qxb7 {[%emt 0:06:08]} Rd7 {[%emt 0:04:24]} 20. Qa6 {[%emt 0:01:44]} Bxd4 {[%emt 0:01:09]} 21. Nxd4 {[%emt 0:00:16]} Qxd4 {[%emt 0:00:12]} 22. Qxc6 {[%emt 0:01:50]} Rd6 {[%emt 0:10:04]} 23. Qc7 {[%emt 0:02:03]} Be6 {[%emt 0:10:04]} 24. Bxe6 {[%emt 0:01:06]} fxe6 {[%emt 0:02:27]} 25. Re2 {[%emt 0:01:05]} Qf4 {[%emt 0:06:58]} 26. Rce1 {[%emt 0:01:58]} Rf7 {[%emt 0:04:46]} 27. Qc5 {[%emt 0:00:18]} Rb6 {[%emt 0:06:57]} 28. b3 {[%emt 0:01:17]} Rc7 {[%emt 0:01:29]} 29. Qa5 {[%emt 0:01:40]} Qf5 {[%emt 0:05:33]} 30. Qd2 {[%emt 0:01:44]} Kg7 {[%emt 0:02:34]} 31. Qd8 {[%emt 0:05:56]} Rf7 {[%emt 0:00:12]} 32. Qd4+ {[%emt 0:01:14]} Qf6 {[%emt 0:00:15]} 33. Qc5 {[%emt 0:05:34]} Qe7 {[%emt 0:00:55]} 34. Qc4 {[%emt 0:00:19]} Qf6 {[%emt 0:00:28]} 35. Rd1 {[%emt 0:02:38]} e5 {[%emt 0:00:42]} 36. Qd5 {[%emt 0:00:58]} Re6 {[%emt 0:00:19]} 37. Rde1 {[%emt 0:00:59]} Rfe7 {[%emt 0:01:28]} 38. Re4 {[%emt 0:01:00]} Rd6 {[%emt 0:00:18]} 39. Qa5 {[%emt 0:00:14]} Ra6 {[%emt 0:00:24]} 40. Qd2 {[%emt 0:00:13]} Rd6 {[%emt 0:00:36]} 41. Qe2 {[%emt 0:00:23]} Rde6 {[%emt 0:00:19]} 42. f4 {[%emt 0:00:16]} Ra6 {[%emt 0:01:31]} 43. fxe5 {[%emt 0:00:19]} Qb6+ {[%emt 0:00:12]} 44. Kh1 {[%emt 0:00:22]} Rf7 {[%emt 0:00:22]} 45. e6 {[%emt 0:00:57]} Rf2 {[%emt 0:00:14]} 46. e7 {[%emt 0:00:41]} Rxe2 {[%emt 0:01:27]} 47. R4xe2 {[%emt 0:00:15]} 1-0

[Event "Galicia-ch 2021"]
[Site "Padron"]
[Date "2021.04.03"]
[Round "6.1"]
[White "Larino Nieto, David"]
[Black "Gomez Dieguez, David"]
[Result "1-0"]
[ECO "A05"]
[WhiteElo "2461"]
[BlackElo "2298"]
[Annotator "ChessBase"]
[PlyCount "87"]
[EventDate "2021.04.02"]
[EventType "swiss"]
[EventCountry "ESP"]
[SourceTitle "playchess.com"]
[Source "ChessBase"]
[SourceQuality "1"]
[TimeControl "5400+30"]

1. Nf3 {[%emt 0:11:36]} Nf6 {[%emt 0:00:00]} 2. Nc3 {[%emt 0:00:05]} d5 {[%emt 0:03:43]} 3. d4 {[%emt 0:00:02]} Bf5 {[%emt 0:00:04]} 4. Bf4 {[%emt 0:02:30]} Nh5 {[%emt 0:03:32]} 5. Be5 {[%emt 0:01:29]} f6 {[%emt 0:00:53]} 6. e4 {[%emt 0:07:19]} Bg6 {[%emt 0:06:38]} 7. exd5 {[%emt 0:09:36]} fxe5 {[%emt 0:09:45]} 8. dxe5 {[%emt 0:00:03]} e6 {[%emt 0:04:06]} 9. Nd4 {[%emt 0:06:48]} exd5 {[%emt 0:09:16]} 10. Ne6 {[%emt 0:00:51]} Qd7 {[%emt 0:00:29]} 11. Nxd5 {[%emt 0:01:36]} Bb4+ {[%emt 0:00:09]} 12. c3 {[%emt 0:01:58]} Ba5 {[%emt 0:00:03]} 13. Nc5 {[%emt 0:09:19]} Qf5 {[%emt 0:03:05]} 14. Bb5+ {[%emt 0:00:21]} c6 {[%emt 0:01:50]} 15. O-O {[%emt 0:00:04]} Qc8 {[%emt 0:22:51]} 16. Qa4 {[%emt 0:01:40]} Bd8 {[%emt 0:01:47]} 17. Be2 {[%emt 0:08:47]} O-O {[%emt 0:02:15]} 18. Ne3 {[%emt 0:00:36]} Nf4 {[%emt 0:04:43]} 19. Bg4 {[%emt 0:00:16]} Qc7 {[%emt 0:00:04]} 20. Qc4+ {[%emt 0:13:14]} Kh8 {[%emt 0:00:26]} 21. g3 {[%emt 0:00:29]} Qxe5 {[%emt 0:11:08]} 22. gxf4 {[%emt 0:01:21]} Rxf4 {[%emt 0:00:14]} 23. Rad1 {[%emt 0:05:30]} Na6 {[%emt 0:02:02]} 24. Nd7 {[%emt 0:03:24]} Qg5 {[%emt 0:01:34]} 25. Rd4 {[%emt 0:00:27]} Bc7 {[%emt 0:01:59]} 26. Rxf4 {[%emt 0:01:18]} Qxf4 {[%emt 0:01:43]} 27. Qxf4 {[%emt 0:00:02]} Bxf4 {[%emt 0:00:05]} 28. Ng2 {[%emt 0:01:39]} Bc7 {[%emt 0:00:53]} 29. f4 {[%emt 0:00:10]} Rd8 {[%emt 0:01:07]} 30. Re1 {[%emt 0:00:35]} Be8 {[%emt 0:02:34]} 31. Ne5 {[%emt 0:00:33]} Kg8 {[%emt 0:01:55]} 32. Kf2 {[%emt 0:03:12]} Rd2+ {[%emt 0:00:34]} 33. Kg3 {[%emt 0:00:16]} Kf8 {[%emt 0:00:05]} 34. Nf3 {[%emt 0:01:14]} Rxb2 {[%emt 0:01:13]} 35. Ng5 {[%emt 0:00:02]} Bg6 {[%emt 0:02:13]} 36. Ne6+ {[%emt 0:00:01]} Kg8 {[%emt 0:00:06]} 37. Nh4 {[%emt 0:00:30]} Bb6 {[%emt 0:00:42]} 38. Kh3 {[%emt 0:01:55]} Nc5 {[%emt 0:01:25]} 39. Ng5 {[%emt 0:00:30]} Nd3 {[%emt 0:00:46]} 40. Nxg6 {[%emt 0:00:21]} Nxf4+ {[%emt 0:01:23]} 41. Nxf4 {[%emt 0:00:06]} g6 {[%emt 0:00:14]} 42. Re7 {[%emt 0:01:06]} Rf2 {[%emt 0:00:46]} 43. Nfe6 {[%emt 0:00:28]} h5 {[%emt 0:00:10]} 44. Re8+ {[%emt 0:00:09]} 1-0

[Event "Galicia-ch 2021"]
[Site "Padron"]
[Date "2021.04.03"]
[Round "6.2"]
[White "Villar Perez, Samuel"]
[Black "Espineira Gonzalez, Diego"]
[Result "1/2-1/2"]
[ECO "D02"]
[WhiteElo "2183"]
[BlackElo "2338"]
[Annotator "NA"]
[PlyCount "56"]
[EventDate "2021.04.02"]
[EventType "swiss"]
[EventCountry "ESP"]
[SourceTitle "playchess.com"]
[Source "ChessBase"]
[SourceQuality "1"]
[TimeControl "5400+30"]

1. d4 {[%emt 0:06:36]} d5 {[%emt 0:00:00]} 2. Nf3 {[%emt 0:00:50]} Nf6 {[%emt 0:00:00]} 3. Bf4 {[%emt 0:00:23]} c5 {[%emt 0:00:00]} 4. e3 {[%emt 0:00:04]} Qb6 {[%emt 0:00:09]} 5. Qc1 {[%emt 0:20:01]} Nc6 {[%emt 0:00:47]} 6. c3 {[%emt 0:01:31]} Bf5 {[%emt 0:01:37]} 7. Nbd2 $11 {[%emt 0:00:20]} h6 {[%emt 0:05:50]} 8. dxc5 {[%emt 0:03:59]} Qxc5 {[%emt 0:01:10]} 9. Nb3 {[%emt 0:02:03]} Qb6 {[%emt 0:00:11]} 10. Nbd4 {[%emt 0:00:10]} Nxd4 {[%emt 0:04:21]} 11. exd4 {[%emt 0:08:26]} e6 {[%emt 0:06:11]} 12. a4 {[%emt 0:00:42]} a6 {[%emt 0:01:38]} 13. a5 {[%emt 0:02:36]} Qd8 {[%emt 0:02:18]} 14. Qd1 {[%emt 0:00:09]} Bd6 {[%emt 0:02:55]} 15. Qa4+ {[%emt 0:02:09]} Ke7 {[%emt 0:00:27]} 16. Bxd6+ {[%emt 0:08:46]} Qxd6 {[%emt 0:00:10]} 17. Ne5 {[%emt 0:01:43]} Nd7 {[%emt 0:16:35]} 18. Nxd7 {[%emt 0:02:07]} Qxd7 {[%emt 0:00:11]} 19. Be2 {[%emt 0:03:07]} Rac8 {[%emt 0:02:20]} 20. Qb4+ {[%emt 0:01:18]} Kf6 {[%emt 0:00:11]} 21. O-O {[%emt 0:00:18]} g5 {[%emt 0:08:41]} 22. Ra3 {[%emt 0:04:27]} Rc7 {[%emt 0:01:24]} 23. Rb3 {[%emt 0:00:59]} Bc2 {[%emt 0:03:11]} 24. Ra3 {[%emt 0:00:04]} Bf5 {[%emt 0:05:27]} 25. Qb6 {[%emt 0:05:30]} Kg7 {[%emt 0:10:48]} 26. Qb3 {[%emt 0:01:35]} Re8 {[%emt 0:00:32]} 27. Qb4 Kf6 28. Qb3 Rh8 1/2-1/2